[Event "January 9 Late 2024"]
[Site "https://www.chess.com"]
[Date "2024.01.09"]
[Round "7"]
[White "Avalos Parra, Joao"]
[Black "Potapova, Margarita"]
[Result "1-0"]
[Board "108"]
[TimeControl "180+1"]
[WhiteFideId "3402541"]
[BlackFideId "14126869"]
[WhiteElo "2412"]
[BlackElo "2554"]
[WhiteTeam "CHI"]
[BlackTeam "RUS"]
[WhiteClock "0:00:05"]
[BlackClock "0:00:08"]

1. d4 {[%clk 0:03:00]}  d5 {[%clk 0:02:45]} 2. c4 {[%clk 0:03:00]}  c6 {[%clk 0:02:46]} 3. Nf3 {[%clk 0:03:01]}  Nf6 {[%clk 0:02:45]} 4. Nc3 {[%clk 0:03:01]}  dxc4 {[%clk 0:02:41]} 5. a4 {[%clk 0:03:01]}  Bf5 {[%clk 0:02:39]} 6. Ne5 {[%clk 0:03:01]}  Nbd7 {[%clk 0:02:33]} 7. Nxc4 {[%clk 0:03:02]}  Nb6 {[%clk 0:02:32]} 8. Ne5 {[%clk 0:02:15]}  a5 {[%clk 0:02:31]} 9. e3 {[%clk 0:02:11]}  Nfd7 {[%clk 0:02:24]} 10. Nxf7 {[%clk 0:02:04]}  Kxf7 {[%clk 0:02:21]} 11. Qf3 {[%clk 0:02:05]}  e6 {[%clk 0:02:19]} 12. g4 {[%clk 0:02:03]}  Qf6 {[%clk 0:02:15]} 13. gxf5 {[%clk 0:02:04]}  Qxf5 {[%clk 0:02:16]} 14. Qd1 {[%clk 0:01:57]}  Bb4 {[%clk 0:02:13]} 15. Bd3 {[%clk 0:01:56]}  Qh3 {[%clk 0:02:07]} 16. Bd2 {[%clk 0:01:57]}  Qg2 {[%clk 0:02:04]} 17. Be4 {[%clk 0:01:49]}  Qh3 {[%clk 0:02:04]} 18. Qe2 {[%clk 0:01:48]}  Nf6 {[%clk 0:02:02]} 19. Bd3 {[%clk 0:01:47]}  Nbd5 {[%clk 0:01:57]} 20. O-O-O {[%clk 0:01:34]}  b5 {[%clk 0:01:44]} 21. Rdg1 {[%clk 0:01:23]}  bxa4 {[%clk 0:01:37]} 22. Rg3 {[%clk 0:01:22]}  Qh4 {[%clk 0:01:37]} 23. Rhg1 {[%clk 0:01:17]}  g6 {[%clk 0:01:36]} 24. Rf3 {[%clk 0:01:14]}  a3 {[%clk 0:01:34]} 25. bxa3 {[%clk 0:01:02]}  Bxc3 {[%clk 0:01:19]} 26. e4 {[%clk 0:00:59]}  Bxd4 {[%clk 0:01:07]} 27. exd5 {[%clk 0:00:55]}  cxd5 {[%clk 0:01:03]} 28. Bg5 {[%clk 0:00:51]}  Qxh2 {[%clk 0:01:00]} 29. Re1 {[%clk 0:00:41]}  Rhe8 {[%clk 0:00:48]} 30. Bf4 {[%clk 0:00:40]}  Rac8+ {[%clk 0:00:42]} 31. Kd1 {[%clk 0:00:39]}  Qh4 {[%clk 0:00:39]} 32. Be5 {[%clk 0:00:35]}  Bxe5 {[%clk 0:00:37]} 33. Qxe5 {[%clk 0:00:36]}  Qa4+ {[%clk 0:00:36]} 34. Kd2 {[%clk 0:00:33]}  Qh4 {[%clk 0:00:33]} 35. Rf4 {[%clk 0:00:24]}  Qh6 {[%clk 0:00:23]} 36. Qxf6+ {[%clk 0:00:22]}  Kg8 {[%clk 0:00:24]} 37. Re5 {[%clk 0:00:11]}  Rb8 {[%clk 0:00:19]} 38. Rg5 {[%clk 0:00:09]}  e5 {[%clk 0:00:13]} 39. Bxg6 {[%clk 0:00:07]}  exf4 {[%clk 0:00:10]} 40. Bxe8+ {[%clk 0:00:05]}  Qxg5 {[%clk 0:00:10]} 41. Qxg5+ {[%clk 0:00:05]}  Kf8 {[%clk 0:00:08]} 42. Qxf4+ {[%clk 0:00:05]} 1-0

[Event "January 9 Late 2024"]
[Site "https://www.chess.com"]
[Date "2024.01.09"]
[Round "7"]
[White "Haszon, David"]
[Black "Maltsevskaya, Aleksandra"]
[Result "1-0"]
[Board "109"]
[TimeControl "180+1"]
[WhiteFideId "733610"]
[BlackFideId "24174041"]
[WhiteElo "2410"]
[BlackElo "2554"]
[WhiteTeam "HUN"]
[BlackTeam "POL"]
[WhiteClock "0:01:50"]
[BlackClock "0:01:04"]

1. e4 {[%clk 0:02:50]}  c5 {[%clk 0:01:15]} 2. Nc3 {[%clk 0:02:45]}  e6 {[%clk 0:01:15]} 3. Nf3 {[%clk 0:02:43]}  Nc6 {[%clk 0:01:16]} 4. d4 {[%clk 0:02:43]}  cxd4 {[%clk 0:01:16]} 5. Nxd4 {[%clk 0:02:43]}  Nf6 {[%clk 0:01:17]} 6. Ndb5 {[%clk 0:02:42]}  Bc5 {[%clk 0:01:17]} 7. Bf4 {[%clk 0:02:35]}  O-O {[%clk 0:01:17]} 8. Bc7 {[%clk 0:02:34]}  Qe7 {[%clk 0:01:17]} 9. Bd6 {[%clk 0:02:33]}  Bxd6 {[%clk 0:01:18]} 10. Qxd6 {[%clk 0:02:32]}  Qd8 {[%clk 0:01:18]} 11. O-O-O {[%clk 0:02:20]}  a6 {[%clk 0:01:19]} 12. Nd4 {[%clk 0:02:18]}  Nxd4 {[%clk 0:01:18]} 13. Qxd4 {[%clk 0:02:07]}  b5 {[%clk 0:01:14]} 14. e5 {[%clk 0:02:06]}  Ne8 {[%clk 0:01:03]} 15. f4 {[%clk 0:02:04]}  Qa5 {[%clk 0:01:03]} 16. a3 {[%clk 0:02:00]}  Rb8 {[%clk 0:01:03]} 17. Qb4 {[%clk 0:01:53]}  Qc7 {[%clk 0:01:03]} 18. Bd3 {[%clk 0:01:50]}  a5 {[%clk 0:01:03]} 19. Qe4 {[%clk 0:01:50]}  b4 {[%clk 0:01:04]} 20. Qxh7# {[%clk 0:01:50]} 1-0

[Event "January 9 Late 2024"]
[Site "https://www.chess.com"]
[Date "2024.01.09"]
[Round "7"]
[White "Stachanczyk, Jacek"]
[Black "Aliakbarov, Anar"]
[Result "0-1"]
[Board "110"]
[TimeControl "180+1"]
[WhiteFideId "1116657"]
[BlackFideId "13401858"]
[WhiteElo "2407"]
[BlackElo "2547"]
[WhiteTeam "POL"]
[BlackTeam "TUR"]
[WhiteClock "0:00:40"]
[BlackClock "0:00:17"]

1. e4 {[%clk 0:02:54]}  e5 {[%clk 0:02:58]} 2. Nf3 {[%clk 0:02:54]}  Nc6 {[%clk 0:02:58]} 3. Bb5 {[%clk 0:02:53]}  a6 {[%clk 0:02:58]} 4. Ba4 {[%clk 0:02:53]}  Nf6 {[%clk 0:02:57]} 5. O-O {[%clk 0:02:53]}  Be7 {[%clk 0:02:57]} 6. Re1 {[%clk 0:02:51]}  b5 {[%clk 0:02:49]} 7. Bb3 {[%clk 0:02:50]}  d6 {[%clk 0:02:50]} 8. c3 {[%clk 0:02:49]}  O-O {[%clk 0:02:46]} 9. h3 {[%clk 0:02:49]}  Na5 {[%clk 0:02:43]} 10. Bc2 {[%clk 0:02:49]}  c5 {[%clk 0:02:44]} 11. d4 {[%clk 0:02:50]}  Qc7 {[%clk 0:02:44]} 12. Nbd2 {[%clk 0:02:50]}  cxd4 {[%clk 0:02:44]} 13. cxd4 {[%clk 0:02:50]}  Bb7 {[%clk 0:02:45]} 14. Nf1 {[%clk 0:02:32]}  Rac8 {[%clk 0:02:38]} 15. Bd3 {[%clk 0:02:31]}  d5 {[%clk 0:02:39]} 16. exd5 {[%clk 0:02:13]}  exd4 {[%clk 0:02:38]} 17. Nxd4 {[%clk 0:02:09]}  Nxd5 {[%clk 0:02:38]} 18. Nf5 {[%clk 0:01:50]}  Bf6 {[%clk 0:02:35]} 19. Qg4 {[%clk 0:01:48]}  Nc4 {[%clk 0:02:10]} 20. Bh6 {[%clk 0:01:36]}  Ne5 {[%clk 0:02:01]} 21. Qg3 {[%clk 0:01:29]}  Nxd3 {[%clk 0:01:58]} 22. Qxd3 {[%clk 0:01:22]}  gxh6 {[%clk 0:01:52]} 23. Nxh6+ {[%clk 0:01:22]}  Kh8 {[%clk 0:01:52]} 24. Ng3 {[%clk 0:01:16]}  Nf4 {[%clk 0:01:35]} 25. Qf5 {[%clk 0:01:15]}  Bg7 {[%clk 0:01:33]} 26. Rac1 {[%clk 0:01:00]}  Qxc1 {[%clk 0:00:40]} 27. Rxc1 {[%clk 0:01:01]}  Rxc1+ {[%clk 0:00:39]} 28. Kh2 {[%clk 0:01:02]}  Bxh6 {[%clk 0:00:38]} 29. Qf6+ {[%clk 0:01:01]}  Bg7 {[%clk 0:00:38]} 30. Qxf4 {[%clk 0:01:00]}  Rc5 {[%clk 0:00:33]} 31. h4 {[%clk 0:00:52]}  Be5 {[%clk 0:00:32]} 32. Qe3 {[%clk 0:00:50]}  Rfc8 {[%clk 0:00:27]} 33. f4 {[%clk 0:00:49]}  Bf6 {[%clk 0:00:18]} 34. Nh5 {[%clk 0:00:40]}  Rxh5 {[%clk 0:00:17]} 0-1

[Event "January 9 Late 2024"]
[Site "https://www.chess.com"]
[Date "2024.01.09"]
[Round "7"]
[White "Serban, Cristian-Stefan"]
[Black "Bogaudinov, Rushan"]
[Result "1-0"]
[Board "111"]
[TimeControl "180+1"]
[WhiteFideId "1241443"]
[BlackFideId "4129288"]
[WhiteElo "2546"]
[BlackElo "2402"]
[WhiteTeam "ROU"]
[BlackTeam "RUS"]
[WhiteClock "0:01:26"]
[BlackClock "0:00:00"]

1. Nf3 {[%clk 0:03:00]}  d5 {[%clk 0:01:46]} 2. e3 {[%clk 0:02:59]}  e6 {[%clk 0:01:46]} 3. b3 {[%clk 0:02:59]}  a5 {[%clk 0:01:45]} 4. a3 {[%clk 0:02:59]}  Nf6 {[%clk 0:01:45]} 5. Bb2 {[%clk 0:02:59]}  Be7 {[%clk 0:01:45]} 6. c4 {[%clk 0:02:59]}  O-O {[%clk 0:01:45]} 7. Nc3 {[%clk 0:02:58]}  c6 {[%clk 0:01:42]} 8. g3 {[%clk 0:02:54]}  Bd7 {[%clk 0:01:38]} 9. Bg2 {[%clk 0:02:54]}  b5 {[%clk 0:01:38]} 10. Ne5 {[%clk 0:02:44]}  bxc4 {[%clk 0:01:35]} 11. bxc4 {[%clk 0:02:44]}  Na6 {[%clk 0:01:32]} 12. O-O {[%clk 0:02:40]}  Rb8 {[%clk 0:01:30]} 13. Rb1 {[%clk 0:02:36]}  Qc7 {[%clk 0:01:27]} 14. d4 {[%clk 0:02:32]}  dxc4 {[%clk 0:01:05]} 15. Nxc4 {[%clk 0:02:29]}  Nd5 {[%clk 0:01:05]} 16. Qd3 {[%clk 0:02:23]}  Rb3 {[%clk 0:00:59]} 17. Nd2 {[%clk 0:02:20]}  Rb6 {[%clk 0:00:50]} 18. Na4 {[%clk 0:02:19]}  Rb5 {[%clk 0:00:45]} 19. e4 {[%clk 0:02:12]}  Nf6 {[%clk 0:00:42]} 20. Nc3 {[%clk 0:02:10]}  Rb6 {[%clk 0:00:41]} 21. Nc4 {[%clk 0:02:10]}  Rbb8 {[%clk 0:00:39]} 22. Ne5 {[%clk 0:01:54]}  Ra8 {[%clk 0:00:38]} 23. Na4 {[%clk 0:01:52]}  Rfb8 {[%clk 0:00:37]} 24. Rfc1 {[%clk 0:01:49]}  Be8 {[%clk 0:00:36]} 25. d5 {[%clk 0:01:46]}  exd5 {[%clk 0:00:30]} 26. exd5 {[%clk 0:01:47]}  c5 {[%clk 0:00:16]} 27. d6 {[%clk 0:01:28]}  Qxd6 {[%clk 0:00:00]} 28. Bxa8 {[%clk 0:01:26]} 1-0

[Event "January 9 Late 2024"]
[Site "https://www.chess.com"]
[Date "2024.01.09"]
[Round "7"]
[White "Gasparyan, David"]
[Black "Play, Gilles"]
[Result "1/2-1/2"]
[Board "113"]
[TimeControl "180+1"]
[WhiteFideId "13311980"]
[BlackFideId "45130892"]
[WhiteElo "2541"]
[BlackElo "2523"]
[WhiteTeam "USA"]
[BlackTeam "FRA"]
[WhiteClock "0:00:02"]
[BlackClock "0:00:08"]

1. Nf3 {[%clk 0:02:57]}  e6 {[%clk 0:02:57]} 2. e4 {[%clk 0:02:57]}  d5 {[%clk 0:02:56]} 3. exd5 {[%clk 0:02:51]}  exd5 {[%clk 0:02:57]} 4. d4 {[%clk 0:02:50]}  Nf6 {[%clk 0:02:57]} 5. Ne5 {[%clk 0:02:50]}  Bd6 {[%clk 0:02:56]} 6. Be2 {[%clk 0:02:50]}  O-O {[%clk 0:02:56]} 7. O-O {[%clk 0:02:50]}  Nbd7 {[%clk 0:02:53]} 8. Bf4 {[%clk 0:02:36]}  Re8 {[%clk 0:02:45]} 9. Nd3 {[%clk 0:02:36]}  Qe7 {[%clk 0:02:39]} 10. Nc3 {[%clk 0:02:30]}  c6 {[%clk 0:02:30]} 11. Re1 {[%clk 0:01:57]}  Bxf4 {[%clk 0:02:22]} 12. Nxf4 {[%clk 0:01:56]}  Qb4 {[%clk 0:02:22]} 13. a3 {[%clk 0:01:51]}  Qd6 {[%clk 0:02:15]} 14. g3 {[%clk 0:01:31]}  Nb6 {[%clk 0:02:09]} 15. b3 {[%clk 0:01:15]}  Bf5 {[%clk 0:01:59]} 16. Nd3 {[%clk 0:01:08]}  Ne4 {[%clk 0:01:54]} 17. Nxe4 {[%clk 0:01:07]}  dxe4 {[%clk 0:01:26]} 18. Nc5 {[%clk 0:00:51]}  e3 {[%clk 0:01:25]} 19. f4 {[%clk 0:00:30]}  Nd5 {[%clk 0:01:22]} 20. Nxb7 {[%clk 0:00:20]}  Qg6 {[%clk 0:01:20]} 21. Bd3 {[%clk 0:00:17]}  Re7 {[%clk 0:00:44]} 22. Nc5 {[%clk 0:00:15]}  Rae8 {[%clk 0:00:40]} 23. Bxf5 {[%clk 0:00:15]}  Qxf5 {[%clk 0:00:41]} 24. Qd3 {[%clk 0:00:15]}  Qg4 {[%clk 0:00:37]} 25. Qe2 {[%clk 0:00:13]}  Qg6 {[%clk 0:00:35]} 26. Qd3 {[%clk 0:00:13]}  f5 {[%clk 0:00:26]} 27. Kh1 {[%clk 0:00:10]}  Qg4 {[%clk 0:00:25]} 28. Qe2 {[%clk 0:00:10]}  Qh3 {[%clk 0:00:18]} 29. Nd3 {[%clk 0:00:09]}  Nc3 {[%clk 0:00:17]} 30. Qg2 {[%clk 0:00:09]}  Qh5 {[%clk 0:00:17]} 31. Ne5 {[%clk 0:00:10]}  Ne4 {[%clk 0:00:16]} 32. Rxe3 {[%clk 0:00:09]}  c5 {[%clk 0:00:16]} 33. d5 {[%clk 0:00:09]}  g5 {[%clk 0:00:16]} 34. c4 {[%clk 0:00:08]}  gxf4 {[%clk 0:00:16]} 35. gxf4+ {[%clk 0:00:08]}  Rg7 {[%clk 0:00:17]} 36. Qf3 {[%clk 0:00:09]}  Ng3+ {[%clk 0:00:16]} 37. Qxg3 {[%clk 0:00:06]}  Rxg3 {[%clk 0:00:16]} 38. Rxg3+ {[%clk 0:00:07]}  Kf8 {[%clk 0:00:15]} 39. Rag1 {[%clk 0:00:07]}  Ke7 {[%clk 0:00:10]} 40. Rg7+ {[%clk 0:00:07]}  Kd8 {[%clk 0:00:09]} 41. Nc6+ {[%clk 0:00:06]}  Kc8 {[%clk 0:00:10]} 42. Nxa7+ {[%clk 0:00:06]}  Kb8 {[%clk 0:00:10]} 43. Nc6+ {[%clk 0:00:07]}  Kc8 {[%clk 0:00:10]} 44. Na7+ {[%clk 0:00:05]}  Kb8 {[%clk 0:00:10]} 45. Nc6+ {[%clk 0:00:05]}  Kc8 {[%clk 0:00:11]} 46. Ne7+ {[%clk 0:00:04]}  Kd8 {[%clk 0:00:07]} 47. Nc6+ {[%clk 0:00:02]}  Kc8 {[%clk 0:00:08]} 1/2-1/2

[Event "January 9 Late 2024"]
[Site "https://www.chess.com"]
[Date "2024.01.09"]
[Round "7"]
[White "Lemos, Dawton Almino"]
[Black "Gurevich, Dmitry"]
[Result "0-1"]
[Board "114"]
[TimeControl "180+1"]
[WhiteFideId "2146797"]
[BlackFideId "2000407"]
[WhiteElo "2354"]
[BlackElo "2538"]
[WhiteTeam "BRA"]
[BlackTeam "USA"]
[WhiteClock "0:00:15"]
[BlackClock "0:00:40"]

1. Nf3 {[%clk 0:03:00]}  Nf6 {[%clk 0:02:59]} 2. g3 {[%clk 0:02:58]}  g6 {[%clk 0:02:59]} 3. Bg2 {[%clk 0:02:56]}  Bg7 {[%clk 0:02:59]} 4. O-O {[%clk 0:02:52]}  O-O {[%clk 0:03:00]} 5. d3 {[%clk 0:02:48]}  c5 {[%clk 0:02:57]} 6. Nbd2 {[%clk 0:02:46]}  d5 {[%clk 0:02:57]} 7. e4 {[%clk 0:02:45]}  dxe4 {[%clk 0:02:54]} 8. dxe4 {[%clk 0:02:44]}  Qc7 {[%clk 0:02:53]} 9. Qe2 {[%clk 0:02:42]}  e5 {[%clk 0:02:51]} 10. a4 {[%clk 0:02:40]}  b6 {[%clk 0:02:47]} 11. c3 {[%clk 0:02:38]}  Ba6 {[%clk 0:02:46]} 12. Nc4 {[%clk 0:02:38]}  Nc6 {[%clk 0:02:44]} 13. Nfd2 {[%clk 0:02:34]}  Na5 {[%clk 0:02:42]} 14. b3 {[%clk 0:02:32]}  Ne8 {[%clk 0:02:38]} 15. Rd1 {[%clk 0:02:13]}  Nd6 {[%clk 0:02:37]} 16. Rb1 {[%clk 0:02:09]}  Rad8 {[%clk 0:02:28]} 17. Bf1 {[%clk 0:02:05]}  Nxb3 {[%clk 0:02:00]} 18. Rxb3 {[%clk 0:01:54]}  Nxc4 {[%clk 0:01:58]} 19. Nxc4 {[%clk 0:01:52]}  Bxc4 {[%clk 0:01:57]} 20. Qc2 {[%clk 0:01:39]}  Bxb3 {[%clk 0:01:50]} 21. Qxb3 {[%clk 0:01:39]}  c4 {[%clk 0:01:44]} 22. Qc2 {[%clk 0:01:31]}  Rxd1 {[%clk 0:01:43]} 23. Qxd1 {[%clk 0:01:31]}  Rd8 {[%clk 0:01:38]} 24. Qc2 {[%clk 0:01:30]}  Bf8 {[%clk 0:01:33]} 25. Qe2 {[%clk 0:01:26]}  Rd3 {[%clk 0:01:25]} 26. Qc2 {[%clk 0:01:23]}  Qd7 {[%clk 0:01:23]} 27. Bxd3 {[%clk 0:01:17]}  cxd3 {[%clk 0:01:20]} 28. Qd1 {[%clk 0:01:11]}  Bc5 {[%clk 0:01:17]} 29. Kg2 {[%clk 0:01:08]}  f5 {[%clk 0:01:14]} 30. f3 {[%clk 0:01:07]}  fxe4 {[%clk 0:01:09]} 31. fxe4 {[%clk 0:01:08]}  h5 {[%clk 0:01:08]} 32. h3 {[%clk 0:01:06]}  Kg7 {[%clk 0:01:02]} 33. Bg5 {[%clk 0:01:01]}  Qf7 {[%clk 0:00:54]} 34. Qf3 {[%clk 0:00:49]}  Qa2+ {[%clk 0:00:41]} 35. Kh1 {[%clk 0:00:15]}  Qb1+ {[%clk 0:00:40]} 0-1

[Event "January 9 Late 2024"]
[Site "https://www.chess.com"]
[Date "2024.01.09"]
[Round "7"]
[White "Tan, Ralph"]
[Black "Kujawski, Adam"]
[Result "1-0"]
[Board "117"]
[TimeControl "180+1"]
[WhiteFideId "30966590"]
[BlackFideId "1100920"]
[WhiteElo "2527"]
[BlackElo "2302"]
[WhiteTeam "USA"]
[BlackTeam "POL"]
[WhiteClock "0:01:08"]
[BlackClock "0:00:00"]

1. e4 {[%clk 0:03:00]}  Nf6 {[%clk 0:02:58]} 2. e5 {[%clk 0:03:01]}  Nd5 {[%clk 0:02:57]} 3. d4 {[%clk 0:03:01]}  d6 {[%clk 0:02:57]} 4. c4 {[%clk 0:03:02]}  Nb6 {[%clk 0:02:57]} 5. Nf3 {[%clk 0:03:02]}  Bg4 {[%clk 0:02:43]} 6. exd6 {[%clk 0:02:56]}  cxd6 {[%clk 0:02:26]} 7. b3 {[%clk 0:02:56]}  g6 {[%clk 0:02:25]} 8. Be2 {[%clk 0:02:55]}  Bg7 {[%clk 0:02:24]} 9. O-O {[%clk 0:02:55]}  O-O {[%clk 0:02:23]} 10. Bb2 {[%clk 0:02:50]}  Nc6 {[%clk 0:02:17]} 11. Nbd2 {[%clk 0:02:46]}  e5 {[%clk 0:02:01]} 12. dxe5 {[%clk 0:02:32]}  dxe5 {[%clk 0:01:57]} 13. Ne4 {[%clk 0:02:09]}  Qe7 {[%clk 0:01:31]} 14. h3 {[%clk 0:01:49]}  Rad8 {[%clk 0:01:29]} 15. Qc1 {[%clk 0:01:45]}  Bxf3 {[%clk 0:01:18]} 16. Bxf3 {[%clk 0:01:45]}  Nd4 {[%clk 0:01:18]} 17. Ba3 {[%clk 0:01:43]}  Qh4 {[%clk 0:00:35]} 18. Bxf8 {[%clk 0:01:40]}  Nxf3+ {[%clk 0:00:11]} 19. gxf3 {[%clk 0:01:39]}  Rxf8 {[%clk 0:00:12]} 20. Kg2 {[%clk 0:01:36]}  Bh6 {[%clk 0:00:08]} 21. Qd1 {[%clk 0:01:19]}  f5 {[%clk 0:00:07]} 22. Ng3 {[%clk 0:01:19]}  f4 {[%clk 0:00:06]} 23. Ne4 {[%clk 0:01:16]}  Rd8 {[%clk 0:00:06]} 24. Qe2 {[%clk 0:01:13]}  Nc8 {[%clk 0:00:01]} 25. Rad1 {[%clk 0:01:11]}  Re8 {[%clk 0:00:01]} 26. c5 {[%clk 0:01:08]}  Ne7 {[%clk 0:00:00]} 27. Qc4+ {[%clk 0:01:08]} 1-0

[Event "January 9 Late 2024"]
[Site "https://www.chess.com"]
[Date "2024.01.09"]
[Round "7"]
[White "Kornyukov, Alexey"]
[Black "Urbina Perez, Juan Antonio"]
[Result "1-0"]
[Board "119"]
[TimeControl "180+1"]
[WhiteFideId "4150457"]
[BlackFideId "2217368"]
[WhiteElo "2284"]
[BlackElo "2524"]
[WhiteTeam "RUS"]
[BlackTeam "ESP"]
[WhiteClock "0:00:10"]
[BlackClock "0:00:22"]

1. d4 {[%clk 0:03:00]}  Nf6 {[%clk 0:02:59]} 2. c4 {[%clk 0:02:59]}  d6 {[%clk 0:03:00]} 3. Nc3 {[%clk 0:02:58]}  e5 {[%clk 0:03:00]} 4. d5 {[%clk 0:02:58]}  Bf5 {[%clk 0:02:56]} 5. f3 {[%clk 0:02:41]}  e4 {[%clk 0:02:54]} 6. g4 {[%clk 0:02:35]}  Nxg4 {[%clk 0:02:34]} 7. fxg4 {[%clk 0:02:26]}  Qh4+ {[%clk 0:02:32]} 8. Kd2 {[%clk 0:02:22]}  e3+ {[%clk 0:02:21]} 9. Kxe3 {[%clk 0:02:21]}  Qg5+ {[%clk 0:02:14]} 10. Kf2 {[%clk 0:02:18]}  Qh4+ {[%clk 0:02:10]} 11. Ke3 {[%clk 0:02:13]}  Qxg4 {[%clk 0:02:02]} 12. Nf3 {[%clk 0:01:47]}  g6 {[%clk 0:01:49]} 13. Qd4 {[%clk 0:01:23]}  Qh5 {[%clk 0:01:38]} 14. Qxh8 {[%clk 0:01:18]}  Nd7 {[%clk 0:01:39]} 15. Kf2 {[%clk 0:01:11]}  O-O-O {[%clk 0:01:38]} 16. Qd4 {[%clk 0:01:09]}  Ne5 {[%clk 0:01:35]} 17. Qh4 {[%clk 0:00:52]}  Ng4+ {[%clk 0:01:26]} 18. Ke1 {[%clk 0:00:46]}  Qxh4+ {[%clk 0:01:17]} 19. Nxh4 {[%clk 0:00:47]}  Bd7 {[%clk 0:01:16]} 20. Bh3 {[%clk 0:00:35]}  Re8 {[%clk 0:01:14]} 21. Nf3 {[%clk 0:00:32]}  Bg7 {[%clk 0:01:08]} 22. Bxg4 {[%clk 0:00:29]}  Bxg4 {[%clk 0:01:08]} 23. Kf2 {[%clk 0:00:29]}  h5 {[%clk 0:01:05]} 24. Bd2 {[%clk 0:00:27]}  Bf6 {[%clk 0:01:05]} 25. h3 {[%clk 0:00:21]}  Bf5 {[%clk 0:01:03]} 26. Bg5 {[%clk 0:00:19]}  Bg7 {[%clk 0:01:01]} 27. e4 {[%clk 0:00:17]}  Bd7 {[%clk 0:01:00]} 28. Rae1 {[%clk 0:00:17]}  a6 {[%clk 0:01:00]} 29. Bf4 {[%clk 0:00:16]}  b5 {[%clk 0:01:00]} 30. e5 {[%clk 0:00:16]}  b4 {[%clk 0:00:57]} 31. Nb1 {[%clk 0:00:14]}  Bf5 {[%clk 0:00:53]} 32. exd6 {[%clk 0:00:13]}  Rf8 {[%clk 0:00:49]} 33. Be5 {[%clk 0:00:12]}  Bh6 {[%clk 0:00:47]} 34. dxc7 {[%clk 0:00:10]}  f6 {[%clk 0:00:46]} 35. Bd6 {[%clk 0:00:09]}  Rg8 {[%clk 0:00:44]} 36. c5 {[%clk 0:00:10]}  Kd7 {[%clk 0:00:31]} 37. Nd4 {[%clk 0:00:10]}  Bd3 {[%clk 0:00:28]} 38. Re7+ {[%clk 0:00:10]}  Kc8 {[%clk 0:00:22]} 39. Rhe1 {[%clk 0:00:10]} 1-0

[Event "January 9 Late 2024"]
[Site "https://www.chess.com"]
[Date "2024.01.09"]
[Round "7"]
[White "Ibadov, Dashgyn"]
[Black "Andrews, Todd"]
[Result "0-1"]
[Board "122"]
[TimeControl "180+1"]
[WhiteFideId "24107514"]
[BlackFideId "2012456"]
[WhiteElo "2622"]
[BlackElo "2442"]
[WhiteTeam "FID"]
[BlackTeam "USA"]
[WhiteClock "0:00:00"]
[BlackClock "0:00:11"]

1. e4 {[%clk 0:03:00]}  e6 {[%clk 0:02:59]} 2. d4 {[%clk 0:03:00]}  d5 {[%clk 0:03:00]} 3. Nc3 {[%clk 0:02:59]}  Bb4 {[%clk 0:03:00]} 4. e5 {[%clk 0:02:59]}  c5 {[%clk 0:03:00]} 5. a3 {[%clk 0:02:59]}  Bxc3+ {[%clk 0:03:01]} 6. bxc3 {[%clk 0:02:59]}  Ne7 {[%clk 0:03:01]} 7. h4 {[%clk 0:02:59]}  Qc7 {[%clk 0:03:00]} 8. Rb1 {[%clk 0:02:55]}  Nbc6 {[%clk 0:02:53]} 9. h5 {[%clk 0:02:55]}  h6 {[%clk 0:02:45]} 10. Qg4 {[%clk 0:02:52]}  cxd4 {[%clk 0:02:39]} 11. cxd4 {[%clk 0:02:48]}  Nf5 {[%clk 0:02:30]} 12. Nf3 {[%clk 0:02:09]}  Ncxd4 {[%clk 0:02:08]} 13. Nxd4 {[%clk 0:02:08]}  Qc3+ {[%clk 0:02:08]} 14. Bd2 {[%clk 0:02:07]}  Qxd4 {[%clk 0:02:07]} 15. Bb5+ {[%clk 0:02:06]}  Kd8 {[%clk 0:01:58]} 16. Qe2 {[%clk 0:01:52]}  b6 {[%clk 0:01:40]} 17. Bd3 {[%clk 0:01:37]}  Re8 {[%clk 0:01:21]} 18. O-O {[%clk 0:01:28]}  Ng3 {[%clk 0:01:16]} 19. Qf3 {[%clk 0:01:16]}  Nxf1 {[%clk 0:01:15]} 20. Rxf1 {[%clk 0:01:12]}  Qxe5 {[%clk 0:00:45]} 21. Re1 {[%clk 0:01:12]}  Qc7 {[%clk 0:00:37]} 22. Bf4 {[%clk 0:01:06]}  Qd7 {[%clk 0:00:33]} 23. Qg3 {[%clk 0:00:58]}  f6 {[%clk 0:00:29]} 24. a4 {[%clk 0:00:36]}  Bb7 {[%clk 0:00:28]} 25. a5 {[%clk 0:00:32]}  e5 {[%clk 0:00:25]} 26. Bd2 {[%clk 0:00:25]}  Rc8 {[%clk 0:00:21]} 27. axb6 {[%clk 0:00:23]}  axb6 {[%clk 0:00:21]} 28. Rb1 {[%clk 0:00:20]}  e4 {[%clk 0:00:20]} 29. Bb5 {[%clk 0:00:19]}  Bc6 {[%clk 0:00:20]} 30. Ba6 {[%clk 0:00:19]}  Ra8 {[%clk 0:00:20]} 31. Bf1 {[%clk 0:00:16]}  Qc7 {[%clk 0:00:19]} 32. Qg4 {[%clk 0:00:13]}  b5 {[%clk 0:00:17]} 33. Be3 {[%clk 0:00:11]}  Qd7 {[%clk 0:00:16]} 34. Qg3 {[%clk 0:00:07]}  f5 {[%clk 0:00:15]} 35. Rd1 {[%clk 0:00:05]}  Kc8 {[%clk 0:00:15]} 36. Rb1 {[%clk 0:00:03]}  Qc7 {[%clk 0:00:12]} 37. Qg6 {[%clk 0:00:00]}  Qd7 {[%clk 0:00:11]} 0-1

[Event "January 9 Late 2024"]
[Site "https://www.chess.com"]
[Date "2024.01.09"]
[Round "7"]
[White "Stojanovski, Sandi"]
[Black "Krzywda, Andrzej"]
[Result "0-1"]
[Board "126"]
[TimeControl "180+1"]
[WhiteFideId "1403249"]
[BlackFideId "1114565"]
[WhiteElo "2518"]
[BlackElo "2407"]
[WhiteTeam "DEN"]
[BlackTeam "POL"]
[WhiteClock "0:00:00"]
[BlackClock "0:00:31"]

1. c4 {[%clk 0:03:00]}  e6 {[%clk 0:02:58]} 2. d4 {[%clk 0:03:00]}  d5 {[%clk 0:02:59]} 3. Nc3 {[%clk 0:02:59]}  Nf6 {[%clk 0:02:59]} 4. Bg5 {[%clk 0:02:59]}  dxc4 {[%clk 0:02:59]} 5. e4 {[%clk 0:02:55]}  c5 {[%clk 0:02:34]} 6. Nf3 {[%clk 0:02:45]}  cxd4 {[%clk 0:02:31]} 7. Qxd4 {[%clk 0:02:37]}  Qxd4 {[%clk 0:02:28]} 8. Nxd4 {[%clk 0:02:38]}  Bb4 {[%clk 0:02:27]} 9. f3 {[%clk 0:02:35]}  Bxc3+ {[%clk 0:02:20]} 10. bxc3 {[%clk 0:02:33]}  Bd7 {[%clk 0:02:04]} 11. Bxc4 {[%clk 0:02:32]}  Nc6 {[%clk 0:02:04]} 12. Nb5 {[%clk 0:02:12]}  O-O {[%clk 0:02:00]} 13. O-O-O {[%clk 0:02:04]}  Ne5 {[%clk 0:01:59]} 14. Be2 {[%clk 0:02:02]}  Rac8 {[%clk 0:01:54]} 15. Kb2 {[%clk 0:02:00]}  Bxb5 {[%clk 0:01:48]} 16. Bxb5 {[%clk 0:01:59]}  Rc5 {[%clk 0:01:45]} 17. Be2 {[%clk 0:01:38]}  Rfc8 {[%clk 0:01:44]} 18. Bd2 {[%clk 0:00:59]}  Nc4+ {[%clk 0:01:36]} 19. Bxc4 {[%clk 0:00:58]}  Rxc4 {[%clk 0:01:36]} 20. Rc1 {[%clk 0:00:40]}  Nd7 {[%clk 0:01:35]} 21. Rhd1 {[%clk 0:00:40]}  Nc5 {[%clk 0:01:31]} 22. Be1 {[%clk 0:00:39]}  f6 {[%clk 0:01:22]} 23. Rd6 {[%clk 0:00:28]}  b5 {[%clk 0:01:14]} 24. Rcd1 {[%clk 0:00:25]}  Na4+ {[%clk 0:01:09]} 25. Kb3 {[%clk 0:00:24]}  Nc5+ {[%clk 0:01:03]} 26. Kc2 {[%clk 0:00:19]}  Kf7 {[%clk 0:01:00]} 27. Rd8 {[%clk 0:00:19]}  Rc7 {[%clk 0:00:59]} 28. Kb1 {[%clk 0:00:15]}  Ke7 {[%clk 0:00:52]} 29. Ra8 {[%clk 0:00:13]}  Na4 {[%clk 0:00:50]} 30. Rd3 {[%clk 0:00:07]}  e5 {[%clk 0:00:45]} 31. Rg8 {[%clk 0:00:02]}  Kf7 {[%clk 0:00:44]} 32. Rgd8 {[%clk 0:00:02]}  Kg6 {[%clk 0:00:35]} 33. R8d7 {[%clk 0:00:00]}  a6 {[%clk 0:00:31]} 0-1